fUST/lending_fUST_20251012
["ID","MTS","AMOUNT","RATE_DAILY","PERIOD"]
[390942053,1760226745823,954.58,0.0002217,2]
[390942054,1760226746183,954.64427686,0.0002217,2]
[390942055,1760226751857,2864.88572314,0.00022176,2]
[390942056,1760226751933,2135.11427686,0.00022176,2]
[390942057,1760226752411,500.0,0.0002217,2]
[390942058,1760226755546,500.0,0.0002217,2]
[390942059,1760226755870,-614.09,0.00022177,2]
[390942060,1760226755948,-500.0,0.00022177,2]
[390942061,1760226756024,-500.0,0.00022177,2]
[390942062,1760226756101,-500.0,0.00022177,2]
[390942063,1760226756174,-473.14,0.00022177,2]
[390942064,1760226756247,-500.0,0.00022177,2]
[390942065,1760226756320,-500.0,0.00022177,2]
[390942066,1760226756397,-500.0,0.00022177,2]
[390942067,1760226756477,-500.0,0.00022177,2]
[390942068,1760226756559,-325.55,0.00022177,2]
[390942069,1760226757078,1106.69,0.0002217,2]
[390942070,1760226757463,1106.69,0.0002217,2]
[390942071,1760226757632,1106.69,0.0002217,2]
[390942072,1760226757724,1106.69,0.0002217,2]
[390942073,1760226757815,1106.69,0.0002217,2]
[390942074,1760226757916,1106.69,0.0002217,2]
[390942075,1760226758094,224.75572314,0.0002217,2]
[390942076,1760226758171,881.93427686,0.0002217,2]
[390942077,1760226758247,1106.69,0.0002217,2]
[390942078,1760226758503,1106.69,0.0002217,2]
[390942079,1760226758745,1106.69,0.0002217,2]
[390942080,1760226758998,1106.69,0.0002217,2]
[390942081,1760226759244,1106.69,0.0002217,2]
[390942082,1760226759496,1106.69,0.0002217,2]
[390942083,1760226759763,1106.69,0.0002217,2]
[390942084,1760226759955,-174.45,0.00022177,2]
[390942085,1760226760039,-197.59,0.00022177,2]
[390942086,1760226760192,1106.69,0.0002217,2]
[390942087,1760226760341,1106.69,0.0002217,2]
[390942088,1760226760561,1106.69,0.0002217,2]
[390942089,1760226760810,1106.69,0.0002217,2]
[390942090,1760226761059,1106.69,0.0002217,2]
[390942091,1760226761314,1106.69,0.0002217,2]
[390942092,1760226761599,1106.69,0.0002217,2]
[390942093,1760226761876,1106.69,0.0002217,2]
[390942094,1760226762158,402.41,0.0002217,2]
[390942095,1760226762229,704.28,0.0002217,2]
[390942096,1760226762424,1106.75988816,0.0002217,2]
[390942097,1760226772906,707.01,0.0002217,2]
[390942098,1760226773185,707.01,0.0002217,2]
[390942099,1760226773570,707.01,0.0002217,2]
[390942100,1760226773733,707.01,0.0002217,2]
[390942101,1760226773993,707.01,0.0002217,2]
[390942102,1760226774366,707.01,0.0002217,2]
[390942103,1760226774615,707.01,0.0002217,2]
[390942104,1760226774879,707.01,0.0002217,2]
[390942105,1760226775143,707.01,0.0002217,2]
[390942106,1760226775385,707.01,0.0002217,2]
[390942107,1760226775627,707.01,0.0002217,2]
[390942108,1760226775857,411.86011184,0.0002217,2]
[390942109,1760226775934,295.14988816,0.0002217,2]
[390942110,1760226776128,707.01,0.0002217,2]
[390942111,1760226776371,707.01,0.0002217,2]
[390942112,1760226776617,500.0,0.00022177,2]
[390942113,1760226776698,707.01,0.0002217,2]
[390942114,1760226776854,269.3,0.00022177,2]
[390942115,1760226776933,707.01,0.0002217,2]
[390942116,1760226777127,707.01,0.0002217,2]
[390942117,1760226777363,707.01,0.0002217,2]
[390942118,1760226777636,707.01,0.0002217,2]
[390942119,1760226777880,707.01,0.0002217,2]
[390942120,1760226778136,707.01,0.0002217,2]
[390942121,1760226778431,707.01,0.0002217,2]
[390942122,1760226778707,707.01,0.0002217,2]
[390942123,1760226778794,1158.45011184,0.00022177,2]
[390942124,1760226778878,3841.54988816,0.00022177,2]
[390942125,1760226778972,707.02,0.0002217,2]
[390942126,1760226780012,-500.0,0.00022271,2]
[390942127,1760226780102,-574.84,0.00022271,2]
[390942128,1760226780196,-500.0,0.00022271,2]
[390942129,1760226780282,-500.0,0.00022271,2]
[390942130,1760226780369,-500.0,0.00022271,2]
[390942131,1760226780459,-500.0,0.00022271,2]
[390942132,1760226782390,300.0,0.0002227,2]
[390942133,1760226787876,500.0,0.0002217,2]
[390942134,1760226794974,500.0,0.00022271,2]
[390942135,1760226801258,2550.33,0.00022271,2]
[390942136,1760226801962,150.0,0.00019696,2]
[390942137,1760226802465,208.22,0.00020634,2]
[390942138,1760226802796,312.33,0.00021572,2]
[390942139,1760226803143,-2449.67,0.00022271,2]
[390942140,1760226803223,-500.0,0.00022272,2]
[390942141,1760226803303,-371.28,0.00022272,2]
[390942142,1760226803398,-500.0,0.00022272,2]
[390942143,1760226803493,-500.0,0.00022272,2]
[390942144,1760226803579,-500.0,0.00022272,2]
[390942145,1760226803949,-500.0,0.00022272,2]
[390942146,1760226804030,-556.49,0.00022272,2]
[390942147,1760226804107,-500.0,0.00022272,2]
[390942148,1760226804185,-500.0,0.00022272,2]
[390942149,1760226804268,-437.62,0.00022272,2]
[390942150,1760226804342,-500.0,0.00022272,2]
[390942151,1760226804416,-311.75629761,0.00022272,2]
[390942152,1760226804515,-500.0,0.00022272,2]
[390942153,1760226804621,-611.66,0.00022272,2]
[390942154,1760226804732,-500.0,0.00022272,2]
[390942155,1760226805249,-500.0,0.00022272,2]
[390942156,1760226805328,-500.0,0.00022272,2]
[390942157,1760226805408,-500.0,0.00022272,2]
[390942158,1760226805485,-540.09,0.00022272,2]
[390942159,1760226805560,-2074.39,0.00022272,2]
[390942160,1760226809883,-500.0,0.00022271,2]
[390942161,1760226809958,-500.0,0.00022271,2]
[390942162,1760226810032,-500.0,0.00022271,2]
[390942163,1760226810112,-500.0,0.00022271,2]
[390942164,1760226810181,-521.04800906,0.00022271,2]
[390942165,1760226810245,-2074.39,0.00022272,2]
[390942166,1760226810696,-2074.39,0.00022272,2]
[390942167,1760226810764,-2074.39,0.00022272,2]
[390942168,1760226820974,-500.0,0.0002217,2]
[390942169,1760226821068,-500.0,0.0002217,2]
[390942170,1760226821156,-159.75,0.0002217,2]
[390942171,1760226824150,5000.0,0.0002217,2]
[390942172,1760226835180,-500.0,0.00022271,2]
[390942173,1760226835251,-500.0,0.00022271,2]
[390942174,1760226835349,-500.0,0.00022271,2]
[390942175,1760226835420,-500.0,0.00022271,2]
[390942176,1760226835618,-500.0,0.00022271,2]
[390942177,1760226835690,-500.0,0.00022271,2]
[390942178,1760226835762,-282.95908752,0.00022271,2]
[390942179,1760226839896,500.0,0.0002217,2]
[390942180,1760226840136,500.0,0.0002217,2]
[390942181,1760226840541,343.0,0.00022271,2]
[390942182,1760226840880,500.0,0.00022271,2]
[390942183,1760226841189,500.0,0.00022271,2]
[390942184,1760226841405,500.0,0.00022271,2]
[390942185,1760226841651,500.0,0.00022271,2]
[390942186,1760226841895,91.09182496,0.00022271,2]
[390942187,1760226841967,408.90817504,0.00022271,2]
[390942188,1760226842155,500.0,0.00022271,2]
[390942189,1760226842365,300.0,0.00022271,2]
[390942190,1760226842445,500.0,0.0002217,2]
[390942191,1760226842528,500.0,0.00022271,2]
[390942192,1760226842658,500.0,0.00022271,2]
[390942193,1760226842742,390.2,0.0002217,2]
[390942194,1760226842946,500.0,0.00022271,2]
[390942195,1760226843226,500.0,0.00022271,2]
[390942196,1760226843523,500.0,0.00022271,2]
[390942197,1760226843775,500.0,0.00022271,2]
[390942198,1760226844071,500.0,0.00022271,2]
[390942199,1760226844562,241.94,0.00022271,2]
[390942200,1760226846586,4158.96182496,0.00022271,2]
[390942201,1760226846663,841.03817504,0.00022271,2]
[390942202,1760226850344,500.0,0.00022271,2]
[390942203,1760226850435,500.0,0.00022271,2]
[390942204,1760226850575,500.0,0.00022271,2]
[390942205,1760226850788,500.0,0.00022271,2]
[390942206,1760226850863,500.0,0.00022271,2]
[390942207,1760226850941,500.0,0.00022271,2]
[390942208,1760226851023,500.0,0.00022271,2]
[390942209,1760226851099,477.85558462,0.00022271,2]
[390942210,1760226851181,500.0,0.00022271,2]
[390942211,1760226851378,500.0,0.00022271,2]
[390942212,1760226851960,500.0,0.00022271,2]
[390942213,1760226852228,500.0,0.00022271,2]
[390942214,1760226852451,158.36237576,0.00022271,2]
[390942215,1760226852793,500.0,0.00022271,2]
[390942216,1760226852967,500.0,0.00022271,2]
[390942217,1760226853052,530.49,0.00022271,2]
[390942218,1760226854201,500.0,0.00022271,2]
[390942219,1760226854464,271.2,0.00022271,2]
[390942220,1760226859222,-2074.39,0.00022272,2]
[390942221,1760226859294,-2074.39,0.00022272,2]
[390942222,1760226859757,480.99889852,0.0002217,2]
[390942223,1760226861446,240.06496606,0.00022177,2]
[390942224,1760226861511,259.93503394,0.00022177,2]
[390942225,1760226861680,334.09,0.00022177,2]
[390942226,1760226863855,500.0,0.00022271,2]
[390942227,1760226864091,500.0,0.00022271,2]
[390942228,1760226864322,500.0,0.00022271,2]
[390942229,1760226864541,500.0,0.00022271,2]
[390942230,1760226864822,314.31,0.00022271,2]
[390942231,1760226865317,-2074.39,0.00022272,2]
[390942232,1760226865405,-2074.39,0.00022272,2]
[390942233,1760226865893,-2074.39,0.00022272,2]
[390942234,1760226865976,-2074.39,0.00022272,2]
[390942235,1760226866078,-2074.39,0.00022272,2]
[390942236,1760226866168,-2074.39,0.00022272,2]
[390942237,1760226866712,-2074.39,0.00022272,2]
[390942238,1760226866788,-2074.39,0.00022272,2]
[390942239,1760226867089,-2074.39,0.00022272,2]
[390942240,1760226867163,-2074.39,0.00022272,2]
[390942241,1760226867258,-2074.39,0.00022272,2]
[390942242,1760226867337,-2074.39,0.00022272,2]
[390942243,1760226867635,-2074.39,0.00022272,2]
[390942244,1760226867730,-2074.39,0.00022272,2]
[390942245,1760226868159,1795.81,0.0002217,2]
[390942246,1760226868655,1795.81,0.0002217,2]
[390942247,1760226868845,-2074.39,0.00022272,2]
[390942248,1760226868916,-2074.39,0.00022272,2]
[390942249,1760226869004,1795.81,0.0002217,2]
[390942250,1760226869386,-2074.39,0.00022272,2]
[390942251,1760226869459,-2074.52336614,0.00022272,2]
[390942252,1760226869532,-500.0,0.00022272,2]
[390942253,1760226869608,-202.18326772,0.00022272,2]
[390942254,1760226869747,1704.24496606,0.0002217,2]
[390942255,1760226869813,91.56503394,0.0002217,2]
[390942256,1760226869899,1795.81,0.0002217,2]
[390942257,1760226869997,1795.81,0.0002217,2]
[390942258,1760226870090,1795.81,0.0002217,2]
[390942259,1760226871454,-1795.81,0.0002217,2]
[390942260,1760226871540,-1795.81,0.0002217,2]
[390942261,1760226871629,-1020.96,0.0002217,2]
[390942262,1760226872081,-774.85,0.0002217,2]
[390942263,1760226872178,-1795.81,0.0002217,2]
[390942264,1760226872274,-1795.81,0.0002217,2]
[390942265,1760226872630,-1795.81,0.0002217,2]
[390942266,1760226872714,-1795.81,0.0002217,2]
[390942267,1760226872796,-500.0,0.0002217,2]
[390942268,1760226872873,-20.96,0.0002217,2]
[390942269,1760226873529,-1774.85,0.0002217,2]
[390942270,1760226873621,-500.0,0.0002217,2]
[390942271,1760226873701,-1795.81,0.0002217,2]
[390942272,1760226873780,-520.22,0.0002217,2]
[390942273,1760226881132,150.0,0.00019813,2]
[390942274,1760226881559,202.61,0.00020756,2]
[390942275,1760226881743,-1795.81,0.0002217,2]
[390942276,1760226881828,-1795.81,0.0002217,2]
[390942277,1760226881918,-1020.96,0.0002217,2]
[390942278,1760226882287,-774.85,0.0002217,2]
[390942279,1760226882358,-1795.81,0.0002217,2]
[390942280,1760226882431,-1795.81,0.0002217,2]
[390942281,1760226882538,-303.91,0.000217,2]
[390942282,1760226882629,-1795.81,0.0002217,2]
[390942283,1760226882707,-500.0,0.0002217,2]
[390942284,1760226882786,-1795.81,0.0002217,2]
[390942285,1760226882860,-500.0,0.0002217,2]
[390942286,1760226883228,-500.0,0.0002217,2]
[390942287,1760226883308,-1795.96,0.0002217,2]
[390942288,1760226883383,-500.0,0.0002217,2]
[390942289,1760226883462,-301.62,0.0002217,2]
[390942290,1760226883538,-250.9973247,0.0002217,2]
[390942291,1760226887851,280.0,0.0003023,120]
[390942292,1760226892421,500.0,0.0002217,2]
[390942293,1760226892688,452.2,0.0002217,2]
[390942294,1760226894290,191.0,0.0002063,3]
[390942295,1760226895753,500.0,0.0002217,2]
[390942296,1760226895954,500.0,0.0002217,2]
[390942297,1760226896174,500.0,0.0002217,2]
[390942298,1760226896400,500.0,0.0002217,2]
[390942299,1760226896654,159.6553506,0.0002217,2]
[390942300,1760226896723,340.3446494,0.0002217,2]
[390942301,1760226896881,440.49,0.0002217,2]
[390942302,1760226897494,-322.21702383,0.00022172,2]
[390942303,1760226897583,-500.0,0.00022177,2]
[390942304,1760226900534,500.0,0.00022177,2]
[390942305,1760226900780,500.0,0.00022177,2]
[390942306,1760226901026,500.0,0.00022177,2]
[390942307,1760226901272,234.18,0.00022177,2]
[390942308,1760226907691,578.39,0.0002217,2]
[390942309,1760226913101,288.0,0.0003023,120]
[390942310,1760226916209,500.0,0.00022177,2]
[390942311,1760226916457,319.38,0.00022177,2]
[390942312,1760226917937,4836.24,0.0002217,2]
[390942313,1760226918099,500.0,0.0002217,2]
[390942314,1760226918193,3266.0,0.0002217,2]
[390942315,1760226918277,1570.24,0.0002217,2]
[390942316,1760226918372,500.0,0.0002217,2]
[390942317,1760226918461,4836.24,0.0002217,2]
[390942318,1760226918570,500.0,0.0002217,2]
[390942319,1760226918660,500.0,0.00022177,2]
[390942320,1760226918748,2093.53,0.0002217,2]
[390942321,1760226918834,2742.71,0.0002217,2]
[390942322,1760226918926,500.0,0.0002217,2]
[390942323,1760226919028,500.0,0.00022177,2]
[390942324,1760226919147,4836.24,0.0002217,2]
[390942325,1760226919236,500.0,0.0002217,2]
[390942326,1760226919327,500.0,0.00022177,2]
[390942327,1760226919431,421.06,0.0002217,2]
[390942328,1760226919528,4415.18,0.0002217,2]
[390942329,1760226919620,500.0,0.00022177,2]
[390942330,1760226919718,4836.24,0.0002217,2]
[390942331,1760226919821,248.59,0.0002217,2]
[390942332,1760226919905,251.41,0.0002217,2]
[390942333,1760226920008,-300.0,0.0002227,2]
[390942334,1760226920108,-261.0,0.0002227,2]
[390942335,1760226920200,-300.0,0.0002227,2]
[390942336,1760226920459,-1200.0,0.0002227,2]
[390942337,1760226920615,500.0,0.00022177,2]
[390942338,1760226920706,500.0,0.0002217,2]
[390942339,1760226920799,4836.24,0.0002217,2]
[390942340,1760226920901,41.77,0.00022177,2]
[390942341,1760226920987,441.08,0.00022177,2]
[390942342,1760226921092,4836.24,0.0002217,2]
[390942343,1760226921205,500.0,0.0002217,2]
[390942344,1760226921625,4663.77,0.0002217,2]
[390942345,1760226921709,172.47,0.0002217,2]
[390942346,1760226921799,642.94,0.0002217,2]
[390942347,1760226922039,4836.24,0.0002217,2]
[390942348,1760226922145,4348.36,0.0002217,2]
[390942349,1760226922239,487.88,0.0002217,2]
[390942350,1760226922365,4836.24,0.0002217,2]
[390942351,1760226922480,4675.89,0.0002217,2]
[390942352,1760226922569,160.35,0.0002217,2]
[390942353,1760226922668,4836.24,0.0002217,2]
[390942354,1760226922765,4836.24,0.0002217,2]
[390942355,1760226922860,167.18,0.0002217,2]
[390942356,1760226922943,4669.06,0.0002217,2]
[390942357,1760226923040,4836.24,0.0002217,2]
[390942358,1760226923147,494.71,0.0002217,2]
[390942359,1760226923232,4341.53,0.0002217,2]
[390942360,1760226923338,4836.24,0.0002217,2]
[390942361,1760226923516,822.24,0.0002217,2]
[390942362,1760226923616,4014.0,0.0002217,2]
[390942363,1760226923725,4836.24,0.0002217,2]
[390942364,1760226923833,1149.77,0.0002217,2]
[390942365,1760226933676,-3686.47,0.0002217,2]
[390942366,1760226934122,-4836.3,0.0002217,2]
[390942367,1760226934578,-500.0,0.0002217,2]
[390942368,1760226934683,-500.0,0.0002217,2]
[390942369,1760226934789,-500.0,0.0002217,2]
[390942370,1760226934881,-500.0,0.0002217,2]
[390942371,1760226934995,-500.0,0.0002217,2]
[390942372,1760226935104,-500.0,0.0002217,2]
[390942373,1760226935206,-500.0,0.0002217,2]
[390942374,1760226935310,-500.0,0.0002217,2]
[390942375,1760226935412,-842.48,0.0002217,2]
[390942376,1760226935635,-842.48,0.0002217,2]
[390942377,1760226935741,-842.48,0.0002217,2]
[390942378,1760226935841,-842.48,0.0002217,2]
[390942379,1760226935933,-842.48,0.0002217,2]
[390942380,1760226936041,-842.48,0.0002217,2]
[390942381,1760226936136,-732.73,0.0002217,2]
[390942382,1760226936560,-109.75,0.0002217,2]
[390942383,1760226936653,-842.48,0.0002217,2]
[390942384,1760226936753,-842.48,0.0002217,2]
[390942385,1760226936849,-842.48,0.0002217,2]
[390942386,1760226936940,-842.48,0.0002217,2]
[390942387,1760226937038,-842.48,0.0002217,2]
[390942388,1760226937130,-513.23,0.0002217,2]
[390942389,1760226937452,-329.25,0.0002217,2]
[390942390,1760226937569,-842.48,0.0002217,2]
[390942391,1760226937673,-842.48,0.0002217,2]
[390942392,1760226937768,-842.48,0.0002217,2]
[390942393,1760226937869,-842.48,0.0002217,2]
[390942394,1760226938080,842.48,0.0002217,2]
[390942395,1760226938401,842.48,0.0002217,2]
[390942396,1760226938918,842.48,0.0002217,2]
[390942397,1760226939363,74.23,0.0002217,2]
[390942398,1760226939450,768.25,0.0002217,2]
[390942399,1760226939660,842.48,0.0002217,2]
[390942400,1760226939862,842.48,0.0002217,2]
[390942401,1760226940167,842.49603652,0.0002217,2]
[390942402,1760226943592,-287.64391031,0.00022177,2]
[390942403,1760226943707,-212.35608969,0.00022177,2]
[390942404,1760226943805,-500.0,0.00022177,2]
[390942405,1760226943909,-500.0,0.00022177,2]
[390942406,1760226944011,-239.96,0.00022177,2]
[390942407,1760226944105,-500.0,0.00022177,2]
[390942408,1760226945188,150.0,0.00022177,2]
[390942409,1760226948759,500.0,0.00022177,2]
[390942410,1760226949019,504.26,0.00022177,2]
[390942411,1760226956403,500.0,0.0002217,2]
[390942412,1760226956633,500.0,0.0002217,2]
[390942413,1760226960553,150.0,0.00019824,2]
[390942414,1760226961014,221.7,0.00020768,2]
[390942415,1760226961439,332.56,0.00021712,2]
[390942416,1760226961804,-154.4614743,0.00022218,2]
[390942417,1760226962654,-265.30378952,0.0002227,2]
[390942418,1760226964811,500.0,0.0002217,2]
[390942419,1760226965219,500.0,0.0002217,2]
[390942420,1760226965456,500.0,0.0002217,2]
[390942421,1760226965699,500.0,0.0002217,2]
[390942422,1760226965985,500.0,0.0002217,2]
[390942423,1760226966214,500.0,0.0002217,2]
[390942424,1760226966452,500.0,0.0002217,2]
[390942425,1760226966548,500.0,0.0002217,2]
[390942426,1760226966642,500.0,0.0002217,2]
[390942427,1760226966785,500.0,0.0002217,2]
[390942428,1760226967123,359.68,0.0002217,2]
[390942429,1760226967219,500.0,0.0002217,2]
[390942430,1760226967445,500.0,0.0002217,2]
[390942431,1760226967677,410.23,0.0002217,2]
[390942432,1760226975720,614.49,0.0002217,2]
[390942433,1760226977917,500.0,0.0002217,2]
[390942434,1760226979725,318.39,0.0002217,2]
[390942435,1760226983511,500.0,0.0002217,2]
[390942436,1760226986310,500.0,0.00022177,2]
[390942437,1760226995522,488.2970514,0.00022177,2]
[390942438,1760226995601,11.7029486,0.00022177,2]
[390942439,1760226995694,533.61,0.0002217,2]
[390942440,1760226995782,500.0,0.00022177,2]
[390942441,1760226996013,500.0,0.00022177,2]
[390942442,1760226996273,500.0,0.00022177,2]
[390942443,1760226996516,500.0,0.00022177,2]
[390942444,1760226996762,499.89,0.00022177,2]
[390942445,1760226997008,-34.69621048,0.0002227,2]
[390942446,1760227013669,500.0,0.0002217,2]
[390942447,1760227013833,276.92,0.0002217,2]
[390942448,1760227015706,500.0,0.0002217,2]
[390942449,1760227015793,500.0,0.0002217,2]
[390942450,1760227015883,500.0,0.0002217,2]
[390942451,1760227015971,290.35,0.0002217,2]
[390942452,1760227016066,500.0,0.0002217,2]
[390942453,1760227016289,500.0,0.0002217,2]
[390942454,1760227016373,500.0,0.00022177,2]
[390942455,1760227016509,500.0,0.0002217,2]
[390942456,1760227016860,500.0,0.0002217,2]
[390942457,1760227017045,-500.0,0.00022271,2]
[390942458,1760227017131,-500.0,0.00022271,2]
[390942459,1760227017213,-500.0,0.00022271,2]
[390942460,1760227017299,-500.0,0.00022271,2]
[390942461,1760227017384,-500.0,0.00022271,2]
[390942462,1760227017477,-500.0,0.00022271,2]
[390942463,1760227017565,-500.0,0.00022271,2]
[390942464,1760227017661,-159.12005726,0.00022271,2]
[390942465,1760227017748,-500.0,0.00022271,2]
[390942466,1760227017835,-500.0,0.00022271,2]
[390942467,1760227017931,-317.97715141,0.00022271,2]
[390942468,1760227018146,500.0,0.0002217,2]
[390942469,1760227018473,-500.0,0.00022271,2]
[390942470,1760227018561,-500.0,0.00022271,2]
[390942471,1760227018659,-500.0,0.00022271,2]
[390942472,1760227018746,-636.9,0.00022271,2]
[390942473,1760227018830,-500.0,0.00022271,2]
[390942474,1760227018919,-500.0,0.00022271,2]
[390942475,1760227019012,-500.0,0.00022271,2]
[390942476,1760227019095,-500.0,0.00022271,2]
[390942477,1760227019181,-500.0,0.00022271,2]
[390942478,1760227019271,-226.21,0.00022271,2]
[390942479,1760227019469,500.0,0.0002217,2]
[390942480,1760227019776,-273.79,0.00022271,2]
[390942481,1760227019858,-500.0,0.00022271,2]
[390942482,1760227019941,-297.95259766,0.00022271,2]
[390942483,1760227020027,-455.67673228,0.00022271,2]
[390942484,1760227020117,-500.0,0.00022271,2]
[390942485,1760227020220,-372.9242503,0.00022271,2]
[390942486,1760227020310,-500.0,0.00022271,2]
[390942487,1760227020403,-500.0,0.00022271,2]
[390942488,1760227020501,-500.0,0.00022271,2]
[390942489,1760227020598,-263.6,0.00022271,2]
[390942490,1760227020687,-388.26999991,0.00022271,2]
[390942491,1760227020779,-395.5828397,0.00022271,2]
[390942492,1760227020979,500.0,0.0002217,2]
[390942493,1760227021195,-104.4171603,0.00022271,2]
[390942494,1760227021286,-500.0,0.00022271,2]
[390942495,1760227021369,-500.0,0.00022271,2]
[390942496,1760227021456,-500.0,0.00022271,2]
[390942497,1760227021547,-500.0,0.00022271,2]
[390942498,1760227021642,-489.84251033,0.00022271,2]
[390942499,1760227021734,-500.0,0.00022271,2]
[390942500,1760227021825,-500.0,0.00022271,2]
[390942501,1760227021912,-500.0,0.00022271,2]
[390942502,1760227022001,-331.31,0.00022271,2]
[390942503,1760227022087,-218.08955322,0.00022271,2]
[390942504,1760227022172,-212.6915523,0.00022271,2]
[390942505,1760227022483,500.0,0.0002217,2]
[390942506,1760227022706,-287.3084477,0.00022271,2]
[390942507,1760227022802,-500.0,0.00022271,2]
[390942508,1760227022893,-500.0,0.00022271,2]
[390942509,1760227022992,-500.0,0.00022271,2]
[390942510,1760227023090,-500.0,0.00022271,2]
[390942511,1760227023202,-500.0,0.00022271,2]
[390942512,1760227023309,-500.0,0.00022271,2]
[390942513,1760227023411,-500.0,0.00022271,2]
[390942514,1760227023525,-500.0,0.00022271,2]
[390942515,1760227023641,-500.0,0.00022271,2]
[390942516,1760227023942,500.0,0.0002217,2]
[390942517,1760227024036,500.0,0.00022177,2]
[390942518,1760227024140,-500.0,0.00022271,2]
[390942519,1760227024417,-326.40369526,0.00022271,2]
[390942520,1760227024514,-500.0,0.00022271,2]
[390942521,1760227024610,-500.0,0.00022271,2]
[390942522,1760227024702,-183.2,0.00022271,2]
[390942523,1760227024794,-500.0,0.00022271,2]
[390942524,1760227024890,-500.0,0.00022271,2]
[390942525,1760227024983,-500.0,0.00022271,2]
[390942526,1760227025073,-344.66009453,0.00022271,2]
[390942527,1760227025164,-500.0,0.00022271,2]
[390942528,1760227025259,-500.0,0.00022271,2]
[390942529,1760227025359,500.0,0.0002217,2]
[390942530,1760227025451,500.0,0.00022177,2]
[390942531,1760227025663,-500.0,0.00022271,2]
[390942532,1760227025759,-397.81,0.00022271,2]
[390942533,1760227025852,-500.0,0.00022271,2]
[390942534,1760227025945,-500.0,0.00022271,2]
[390942535,1760227026042,-501.35681036,0.00022271,2]
[390942536,1760227026139,-500.0,0.00022271,2]
[390942537,1760227026232,-500.0,0.00022271,2]
[390942538,1760227026326,-500.0,0.00022271,2]
[390942539,1760227026417,-500.0,0.00022271,2]
[390942540,1760227026509,-500.0,0.00022271,2]
[390942541,1760227026723,500.0,0.00022177,2]
[390942542,1760227026821,363.34757904,0.0002217,2]
[390942543,1760227026915,136.65242096,0.0002217,2]
[390942544,1760227027330,542.4,0.00022177,2]
[390942545,1760227027418,-500.0,0.00022271,2]
[390942546,1760227027503,-500.0,0.00022271,2]
[390942547,1760227027600,-500.0,0.00022271,2]
[390942548,1760227027693,-500.0,0.00022271,2]
[390942549,1760227027788,-500.0,0.00022271,2]
[390942550,1760227027879,-500.0,0.00022271,2]
[390942551,1760227027968,-500.0,0.00022271,2]
[390942552,1760227028060,-500.0,0.00022271,2]